fUSD/lending_fUSD_20240714
["ID","MTS","AMOUNT","RATE_DAILY","PERIOD"]
[332105721,1720965047260,-500.0,0.00013753,2]
[332105722,1720965047270,-500.0,0.00013753,2]
[332105723,1720965047280,-151.0,0.00013753,2]
[332105724,1720965047290,-500.0,0.00013753,2]
[332105725,1720965047300,-500.0,0.00013753,2]
[332105726,1720965047309,-500.0,0.00013753,2]
[332105727,1720965047318,-500.0,0.00013753,2]
[332105728,1720965047328,-151.0,0.00013753,2]
[332105729,1720965047339,-500.0,0.00013753,2]
[332105730,1720965047350,-151.0,0.00013753,2]
[332105731,1720965047360,-500.0,0.00013753,2]
[332105732,1720965047370,-2194.82,0.00013753,2]
[332105733,1720965047380,-500.0,0.00013753,2]
[332105734,1720965047389,-500.0,0.00013753,2]
[332105735,1720965047399,-500.0,0.00013753,2]
[332105736,1720965047409,-500.0,0.00013753,2]
[332105737,1720965047419,-500.0,0.00013753,2]
[332105738,1720965047428,-500.0,0.00013753,2]
[332105739,1720965047437,-500.0,0.00013753,2]
[332105740,1720965047446,-500.0,0.00013753,2]
[332105741,1720965047456,-500.0,0.00013753,2]
[332105742,1720965047465,-500.0,0.00013753,2]
[332105743,1720965047475,-500.0,0.00013753,2]
[332105744,1720965047485,-500.0,0.00013753,2]
[332105745,1720965047495,-500.0,0.00013753,2]
[332105746,1720965047504,-500.0,0.00013753,2]
[332105747,1720965047514,-500.0,0.00013753,2]
[332105748,1720965047523,-500.0,0.00013753,2]
[332105749,1720965047532,-500.0,0.00013753,2]
[332105750,1720965047541,-646.87620488,0.00013753,2]
[332105751,1720965047551,-500.0,0.00013753,2]
[332105752,1720965047561,-500.0,0.00013753,2]
[332105753,1720965047570,-500.0,0.00013753,2]
[332105754,1720965047580,-500.0,0.00013753,2]
[332105755,1720965047591,-607.24,0.00013753,2]
[332105756,1720965047600,-500.0,0.00013753,2]
[332105757,1720965047610,-500.0,0.00013753,2]
[332105758,1720965047621,-500.0,0.00013753,2]
[332105759,1720965047630,-500.0,0.00013753,2]
[332105760,1720965047639,-500.0,0.00013753,2]
[332105761,1720965047649,-500.0,0.00013753,2]
[332105762,1720965047658,-500.0,0.00013753,2]
[332105763,1720965047667,-500.0,0.00013753,2]
[332105764,1720965047677,-500.0,0.00013753,2]
[332105765,1720965047686,-500.0,0.00013753,2]
[332105766,1720965047695,-461.33178552,0.00013753,2]
[332105767,1720965047705,-500.0,0.00013753,2]
[332105768,1720965047714,-500.0,0.00013753,2]
[332105769,1720965047725,-500.0,0.00013753,2]
[332105770,1720965047735,-571.12,0.00013753,2]
[332105771,1720965047744,-500.0,0.00013753,2]
[332105772,1720965047754,-599.16,0.00013753,2]
[332105773,1720965047764,-500.0,0.00013753,2]
[332105774,1720965047774,-500.0,0.00013753,2]
[332105775,1720965047783,-500.0,0.00013753,2]
[332105776,1720965047793,-500.0,0.00013753,2]
[332105777,1720965047803,-500.0,0.00013753,2]
[332105778,1720965047812,-500.0,0.00013753,2]
[332105779,1720965047822,-500.0,0.00013753,2]
[332105780,1720965047832,-500.0,0.00013753,2]
[332105781,1720965047841,-500.0,0.00013753,2]
[332105782,1720965047850,-500.0,0.00013753,2]
[332105783,1720965047860,-500.0,0.00013753,2]
[332105784,1720965047869,-500.0,0.00013753,2]
[332105785,1720965047879,-500.0,0.00013753,2]
[332105786,1720965047935,-500.0,0.00013753,2]
[332105787,1720965047946,-500.0,0.00013753,2]
[332105788,1720965047955,-500.0,0.00013753,2]
[332105789,1720965047967,-500.0,0.00013753,2]
[332105790,1720965047976,-500.0,0.00013753,2]
[332105791,1720965047986,-500.0,0.00013753,2]
[332105792,1720965047996,-630.75,0.00013753,2]
[332105793,1720965048005,-500.0,0.00013753,2]
[332105794,1720965048014,-500.0,0.00013753,2]
[332105795,1720965048023,-500.0,0.00013753,2]
[332105796,1720965048032,-500.0,0.00013753,2]
[332105797,1720965048042,-500.0,0.00013753,2]
[332105798,1720965048051,-500.0,0.00013753,2]
[332105799,1720965048060,-500.0,0.00013753,2]
[332105800,1720965048070,-500.0,0.00013753,2]
[332105801,1720965048079,-500.0,0.00013753,2]
[332105802,1720965048088,-500.0,0.00013753,2]
[332105803,1720965048097,-239.19,0.00013753,2]
[332105804,1720965048107,-500.0,0.00013753,2]
[332105805,1720965048116,-1711.77,0.00013753,2]
[332105806,1720965048129,-500.0,0.00013753,2]
[332105807,1720965048138,-500.0,0.00013753,2]
[332105808,1720965048147,-500.0,0.00013753,2]
[332105809,1720965048156,-500.0,0.00013753,2]
[332105810,1720965048167,-500.0,0.00013753,2]
[332105811,1720965048177,-500.0,0.00013753,2]
[332105812,1720965048186,-500.0,0.00013753,2]
[332105813,1720965048195,-500.0,0.00013753,2]
[332105814,1720965048204,-538.0,0.00013753,2]
[332105815,1720965048218,-500.0,0.00013753,2]
[332105816,1720965048227,-500.0,0.00013753,2]
[332105817,1720965048236,-430.956642,0.00013753,2]
[332105818,1720965048245,-500.0,0.00013753,2]
[332105819,1720965048254,-500.0,0.00013753,2]
[332105820,1720965048263,-500.0,0.00013753,2]
[332105821,1720965048272,-500.0,0.00013753,2]
[332105822,1720965048281,-430.956642,0.00013753,2]
[332105823,1720965048290,-500.0,0.00013753,2]
[332105824,1720965048299,-500.0,0.00013753,2]
[332105825,1720965048308,-430.956642,0.00013753,2]
[332105826,1720965048318,-430.956642,0.00013753,2]
[332105827,1720965048327,-538.84,0.00013753,2]
[332105828,1720965048336,-500.0,0.00013753,2]
[332105829,1720965048345,-500.0,0.00013753,2]
[332105830,1720965048354,-500.0,0.00013753,2]
[332105831,1720965048363,-500.0,0.00013753,2]
[332105832,1720965048373,-500.0,0.00013753,2]
[332105833,1720965048383,-1430.49,0.00013753,2]
[332105834,1720965048392,-500.0,0.00013753,2]
[332105835,1720965048401,-500.0,0.00013753,2]
[332105836,1720965048411,-500.0,0.00013753,2]
[332105837,1720965048420,-151.0,0.00013753,2]
[332105838,1720965048429,-151.0,0.00013753,2]
[332105839,1720965048439,-500.0,0.00013753,2]
[332105840,1720965048448,-500.0,0.00013753,2]
[332105841,1720965048457,-500.0,0.00013753,2]
[332105842,1720965048466,-500.0,0.00013753,2]
[332105843,1720965048475,-2401.55,0.00013753,2]
[332105844,1720965048484,-500.0,0.00013753,2]
[332105845,1720965048493,-500.0,0.00013753,2]
[332105846,1720965048503,-500.0,0.00013753,2]
[332105847,1720965048512,-500.0,0.00013753,2]
[332105848,1720965048520,-500.0,0.00013753,2]
[332105849,1720965048530,-500.0,0.00013753,2]
[332105850,1720965048539,-361.19581727,0.00013753,2]
[332105851,1720965048548,-500.0,0.00013753,2]
[332105852,1720965048557,-500.0,0.00013753,2]
[332105853,1720965048566,-500.0,0.00013753,2]
[332105854,1720965048575,-500.0,0.00013753,2]
[332105855,1720965048584,-500.0,0.00013753,2]
[332105856,1720965048594,-500.0,0.00013753,2]
[332105857,1720965048603,-500.0,0.00013753,2]
[332105858,1720965048612,-500.0,0.00013753,2]
[332105859,1720965048622,-500.0,0.00013753,2]
[332105860,1720965048631,-500.0,0.00013753,2]
[332105861,1720965048640,-500.0,0.00013753,2]
[332105862,1720965048649,-500.0,0.00013753,2]
[332105863,1720965048658,-500.0,0.00013753,2]
[332105864,1720965048667,-500.0,0.00013753,2]
[332105865,1720965048677,-507.55,0.00013753,2]
[332105866,1720965048686,-565.6,0.00013753,2]
[332105867,1720965048696,-500.0,0.00013753,2]
[332105868,1720965048705,-500.0,0.00013753,2]
[332105869,1720965048714,-500.0,0.00013753,2]
[332105870,1720965048723,-500.0,0.00013753,2]
[332105871,1720965048733,-500.0,0.00013753,2]
[332105872,1720965048743,-500.0,0.00013753,2]
[332105873,1720965048752,-500.0,0.00013753,2]
[332105874,1720965048761,-500.0,0.00013753,2]
[332105875,1720965048770,-500.0,0.00013753,2]
[332105876,1720965048779,-500.0,0.00013753,2]
[332105877,1720965048788,-500.0,0.00013753,2]
[332105878,1720965048797,-500.0,0.00013753,2]
[332105879,1720965048807,-500.0,0.00013753,2]
[332105880,1720965048816,-500.0,0.00013753,2]
[332105881,1720965048825,-500.0,0.00013753,2]
[332105882,1720965048834,-500.0,0.00013753,2]
[332105883,1720965048843,-248.94,0.00013754,2]
[332105884,1720965048852,-242.095824,0.00013754,2]
[332105885,1720965048862,-248.94,0.00013754,2]
[332105886,1720965048871,-151.0,0.0001379,2]
[332105887,1720965048881,-151.0,0.0001379,2]
[332105888,1720965048890,-151.0,0.0001379,2]
[332105889,1720965048899,-151.0,0.0001379,2]
[332105890,1720965048908,-196.377514,0.0001379,2]
[332105891,1720965048918,-151.0,0.0001379,2]
[332105892,1720965048927,-151.0,0.0001379,2]
[332105893,1720965048936,-281.959963,0.0001379,2]
[332105894,1720965048945,-281.959963,0.0001379,2]
[332105895,1720965048955,-281.959963,0.0001379,2]
[332105896,1720965048964,-281.959963,0.0001379,2]
[332105897,1720965048974,-151.0,0.0001379,2]
[332105898,1720965048983,-151.0,0.0001379,2]
[332105899,1720965048992,-163.052088,0.0001379,2]
[332105900,1720965049002,-163.052088,0.0001379,2]
[332105901,1720965049012,-151.0,0.0001379,2]
[332105902,1720965049021,-151.0,0.0001379,2]
[332105903,1720965049030,-18746.93082073,0.0001379,2]
[332105904,1720965049039,-18746.93082065,0.0001379,2]
[332105905,1720965049048,-18746.93082065,0.0001379,2]
[332105906,1720965049058,-151.0,0.0001379,2]
[332105907,1720965049067,-18746.93082065,0.0001379,2]
[332105908,1720965049076,-18746.93082065,0.0001379,2]
[332105909,1720965049086,-18746.93082065,0.0001379,2]
[332105910,1720965049095,-3779.03833998,0.0001379,2]
[332105911,1720965049419,-1016.1851135,0.0001379,2]
[332105912,1720965049436,-784.98522457,0.0001379,2]
[332105913,1720965049447,-720.0,0.0001379,2]
[332105914,1720965049458,-3674.28117892,0.0001379,2]
[332105915,1720965049469,-2933.33267482,0.0001379,2]
[332105916,1720965049488,-500.0,0.00013753,2]
[332105917,1720965049498,-843.27665064,0.0001379,2]
[332105918,1720965049509,-397.08384421,0.0001379,2]
[332105919,1720965049520,-374.10436896,0.0001379,2]
[332105920,1720965049551,-500.0,0.00013753,2]
[332105921,1720965049561,-1435.23226309,0.0001379,2]
[332105922,1720965049573,-1578.55756815,0.0001379,2]
[332105923,1720965049584,-1210.85359381,0.0001379,2]
[332105924,1720965049594,-18746.93082065,0.0001379,2]
[332105925,1720965049604,-18746.93082065,0.0001379,2]
[332105926,1720965049613,-18746.93082065,0.0001379,2]
[332105927,1720965049623,-282.77126889,0.00013793,2]
[332105928,1720965049633,-151.0,0.00013794,2]
[332105929,1720965049643,-151.0,0.00013794,2]
[332105930,1720965049652,-163.052088,0.00013794,2]
[332105931,1720965049662,-163.052088,0.00013794,2]
[332105932,1720965049672,-151.0,0.00013794,2]
[332105933,1720965049681,-151.0,0.00013794,2]
[332105934,1720965049691,-2263.4790378,0.00013794,2]
[332105935,1720965050264,-3196.47938763,0.00013719,2]
[332105936,1720965050276,-3703.52061237,0.00013794,2]
[332105937,1720965050289,-64632.40748483,0.00013794,2]
[332105938,1720965050301,-4309.9950198,0.00013794,2]
[332105939,1720965050312,-430.956642,0.00013794,2]
[332105940,1720965050322,-430.956642,0.00013794,2]
[332105941,1720965050333,-225.772316,0.00013794,2]
[332105942,1720965050344,-3775.0032749,0.00013794,2]
[332105943,1720965050354,-9401.77176552,0.00013797,2]
[332105944,1720965050364,-296.17035922,0.00013799,2]
[332105945,1720965050377,-963.70035484,0.00013799,2]
[332105946,1720965050389,-290.88441333,0.00013799,2]
[332105947,1720965050398,-300.0,0.00013799,2]
[332105948,1720965050407,-300.0,0.00013799,2]
[332105949,1720965050417,-500.0,0.00013799,2]
[332105950,1720965050426,-500.0,0.00013799,2]
[332105951,1720965050436,-692.0,0.00013799,2]
[332105952,1720965050445,-92482.38172757,0.000138,2]
[332105953,1720965050457,-31468.77082061,0.000138,2]
[332105954,1720965050469,-21240.0,0.000138,2]
[332105955,1720965050480,-283.83287331,0.000138,2]
[332105956,1720965050692,-526.41,0.000138,2]
[332105957,1720965050811,-1014.71,0.000138,2]
[332105958,1720965050822,-1421.277422,0.000138,2]
[332105959,1720965050834,-2771.17794119,0.000138,2]
[332105960,1720965050845,-2202.11989541,0.000138,2]
[332105961,1720965050856,-306.09729367,0.000138,2]
[332105962,1720965050916,-2727.47376045,0.000138,2]
[332105963,1720965050928,-272.12555121,0.000138,2]
[332105964,1720965050939,-753.83647302,0.000138,2]
[332105965,1720965050950,-259.94705026,0.000138,2]
[332105966,1720965051770,-399.61215054,0.00013653,2]
[332105967,1720965051779,-485.6192407,0.00013719,2]
[332105968,1720965051795,-247.33410948,0.00013698,2]
[332105969,1720965051804,-206.9104203,0.00013719,2]
[332105970,1720965051813,-1591.93891552,0.000138,2]
[332105971,1720965051824,-16906.58005669,0.000138,2]
[332105972,1720965051846,-692.529661,0.00013753,2]
[332105973,1720965051855,-11274.646339,0.000138,2]
[332105974,1720965051866,-313.3815487,0.000138,2]
[332105975,1720965051877,-1017.312,0.000138,2]
[332105976,1720965051965,-161.77134904,0.000138,2]
[332105977,1720965051976,-2123.73655372,0.000138,2]
[332105978,1720965051987,-731.81325966,0.000138,2]
[332105979,1720965051998,-5593.04588729,0.000138,2]
[332105980,1720965052305,-1107.76045878,0.00013424,2]
[332105981,1720965052315,-692.529661,0.00013753,2]
[332105982,1720965052325,-692.529661,0.00013794,2]
[332105983,1720965052334,-14339.91074962,0.000138,2]
[332105984,1720965052343,-566501.42188427,0.000138,2]
[332105985,1720965052354,-2518.74915113,0.000138,2]
[332105986,1720965052365,-908.66678136,0.000138,2]
[332105987,1720965052377,-789.425,0.000138,2]
[332105988,1720965052388,-594.81,0.000138,2]
[332105989,1720965052399,-1207.1317,0.000138,2]
[332105990,1720965052414,-377.79179351,0.000138,2]
[332105991,1720965052425,-5391.42431779,0.000138,2]
[332105992,1720965052436,-567.96560199,0.000138,2]
[332105993,1720965052448,-386.63634922,0.000138,2]
[332105994,1720965052460,-416.0689448,0.000138,2]
[332105995,1720965052473,-359.1427872,0.000138,2]
[332105996,1720965052484,-322.8916,0.000138,2]
[332105997,1720965094035,346.99,0.00010952,2]
[332106000,1720965219886,374.82703281,5e-05,10]
[332106001,1720965287366,254.73938385,6.061e-05,2]
[332106002,1720965294171,622.01441901,6.061e-05,2]
[332106004,1720965355868,425.22386132,7.347e-05,2]
[332106005,1720965363800,19647.48260334,7.347e-05,2]
[332106006,1720965398824,11823.43350782,7.347e-05,2]
[332106007,1720965409474,425.05273648,7.347e-05,2]
[332106009,1720965592885,356.27356945,8.905e-05,2]
[332106010,1720965610178,685.59413237,8.905e-05,2]
[332106011,1720965625509,658.95661731,8.905e-05,2]
[332106012,1720965629338,626.52030904,8.905e-05,2]
[332106013,1720965654396,242.65178278,0.00010794,2]
[332106014,1720965684440,299.76455308,0.00010794,2]
[332106015,1720965694876,268.73174168,0.00010794,2]
[332106018,1720965721848,350.94,0.0001071,2]
[332106020,1720965882125,155.58118309,0.00010998,2]
[332106026,1720965931411,3235.19,0.00027,120]
[332106027,1720965939278,-285.84416122,0.00016603,30]
[332106068,1720966071167,-150.0,0.00015,15]
[332106069,1720966071196,-1903.95348213,0.00016603,15]
[332106108,1720966232056,-322.46768831,0.00011097,2]
[332106111,1720966232197,-1723.49402903,0.00011097,2]
[332106112,1720966232211,-7140.43670695,0.00011097,2]
[332106113,1720966232222,-150.0,0.00011097,2]
[332106114,1720966232234,-666.5091194,0.00011098,2]
[332106115,1720966232246,-317.16565493,0.00011098,2]
[332106116,1720966232257,-581.5291457,0.00011098,2]
[332106117,1720966232268,-9.3055402,0.00011098,2]
[332106118,1720966232282,-442.27442703,0.00011098,2]
[332106119,1720966232294,-307.78022036,0.00011098,2]
[332106120,1720966232305,-205.63053403,0.00011098,2]
[332106121,1720966232316,-404.65838002,0.00011098,2]
[332106122,1720966232328,-164.01894699,0.00011098,2]
[332106123,1720966232339,-159.96494319,0.00011098,2]
[332106124,1720966232350,-1315.67254838,0.00011098,2]
[332106127,1720966238068,-129.0936945,0.00011098,2]
[332106132,1720966238408,-155.08827773,0.00011098,2]
[332106135,1720966238435,-372.95060732,0.00011098,2]
[332106138,1720966238451,-156.19862631,0.00011098,2]
[332106140,1720966238461,-369.27763063,0.00011098,2]
[332106142,1720966238470,-227.94969352,0.00011098,2]
[332106144,1720966238480,-380.16565691,0.00011098,2]
[332106146,1720966238489,-166.88430824,0.00011098,2]
[332106148,1720966238499,-167.34984429,0.00011098,2]
[332106150,1720966238512,-155.0,0.00011098,2]
[332106152,1720966238521,-155.0,0.00011098,2]
[332106153,1720966238531,-155.17721985,0.00011098,2]
[332106156,1720966238542,-174.01178014,0.00011098,2]
[332106158,1720966238551,-251.66562766,0.00011098,2]
[332106160,1720966238561,-158.56262805,0.00011197,2]
[332106162,1720966238571,-2180.55179261,0.00011199,2]
[332106163,1720966238581,-250.0,0.00012308,2]
[332106165,1720966238591,-151.59175418,0.00012403,2]
[332106167,1720966238600,-208.5,0.00012424,2]
[332106169,1720966238610,-13236.76,0.00012437,2]
[332106171,1720966238619,-1000.0,0.00012629,2]
[332106173,1720966238629,-161.86,0.00012772,2]
[332106175,1720966238639,-350.94,0.00012974,2]
[332106178,1720966238648,-923.53707745,0.00013,2]
[332106180,1720966238658,-424.66,0.00013178,2]
[332106182,1720966238670,-359.939,0.00013322,2]
[332106183,1720966238680,-1251.0,0.00013322,2]
[332106185,1720966238689,-1829.0,0.00013322,2]
[332106187,1720966238699,-398.051,0.00013322,2]
[332106190,1720966238709,-619.0,0.00013322,2]
[332106192,1720966238719,-150.0,0.00013322,2]
[332106193,1720966238727,-705.46979527,0.000135,2]
[332106196,1720966238739,-3791.46814228,0.000135,2]
[332106198,1720966238755,-1000.00000001,0.000135,2]
[332106200,1720966238767,-425.54702192,0.000135,2]
[332106203,1720966238778,-871.96,0.000135,2]
[332106205,1720966238789,-722.5474921,0.000135,2]
[332106207,1720966238805,-531.06930366,0.000135,2]
[332106335,1720966240152,-3466.91092241,0.000135,2]
[332106338,1720966240164,-552.33090042,0.000135,2]
[332106340,1720966240176,-715.70081706,0.000135,2]
[332106342,1720966240186,-450.647,0.00013511,2]
[332106345,1720966240196,-809.0,0.00013511,2]
[332106347,1720966240205,-414.741,0.00013511,2]
[332106349,1720966240215,-541.922,0.00013511,2]
[332106351,1720966240225,-155.47150963,0.00013516,2]
[332106353,1720966240235,-1015.61174834,0.00013524,2]
[332106355,1720966240244,-2642.90622293,0.00013532,2]
[332106357,1720966240256,-356.19588052,0.00013532,2]
[332106362,1720966240300,-2174.89789655,0.00013532,2]
[332106364,1720966240309,-1666.0,0.00013532,2]
[332106366,1720966240318,-150.0,0.00013532,2]
[332106368,1720966240328,-407.171,0.00013532,2]
[332106370,1720966240337,-2660.30376318,0.00013532,2]
[332106381,1720966240432,-300.0,0.00013532,2]
[332106384,1720966240443,-1238.0,0.00013532,2]
[332106388,1720966240472,-3377.68586456,0.00013532,2]
[332106390,1720966240483,-2437.28945687,0.00013532,2]
[332106392,1720966240494,-1625.96453914,0.00013532,2]
[332106394,1720966240508,-1818.9,0.00013532,2]
[332106411,1720966240663,-346.73481017,0.00013532,2]
[332106413,1720966240676,-320.10297877,0.00013532,2]
[332106661,1720966243061,-1750.0,0.00013532,2]
[332106673,1720966243213,-15984.45858731,0.00013532,2]
[332106674,1720966243223,-5819.0,0.00013532,2]
[332106676,1720966243233,-1072.0,0.00013532,2]
[332106678,1720966243242,-323.31487624,0.00013598,2]
[332106679,1720966243251,-1000.0,0.00013598,2]
[332106681,1720966243261,-610.427,0.00013598,2]
[332106684,1720966243271,-2856.108,0.00013598,2]
[332106686,1720966243281,-3271.13086808,0.000136,2]
[332106688,1720966243290,-462.35092215,0.000136,2]
[332106690,1720966243301,-381.44121178,0.00013652,2]
[332106692,1720966243310,-500.0,0.0001369,2]
[332106694,1720966243319,-500.0,0.00013693,2]
[332106696,1720966243330,-500.0,0.00013698,2]
[332106698,1720966243342,-500.0,0.00013698,2]
[332106700,1720966243353,-500.0,0.00013698,2]
[332106702,1720966243363,-500.0,0.00013698,2]
[332106705,1720966243377,-500.0,0.00013698,2]
[332106707,1720966243387,-500.0,0.00013698,2]
[332106709,1720966243396,-500.0,0.00013698,2]
[332106711,1720966243406,-500.0,0.00013698,2]
[332106713,1720966243418,-500.0,0.00013698,2]
[332106715,1720966243427,-500.0,0.00013698,2]
[332106717,1720966243436,-500.0,0.00013698,2]
[332106719,1720966243446,-500.0,0.00013698,2]
[332106721,1720966243456,-500.0,0.00013698,2]
[332106723,1720966243468,-500.0,0.00013698,2]
[332106726,1720966243479,-500.0,0.00013698,2]
[332106728,1720966243490,-500.0,0.00013698,2]
[332106730,1720966243500,-500.0,0.00013698,2]
[332106732,1720966243515,-500.0,0.00013698,2]
[332106734,1720966243526,-500.0,0.00013698,2]
[332106736,1720966243535,-500.0,0.00013698,2]
[332106738,1720966243546,-500.0,0.00013698,2]
[332106740,1720966243558,-500.0,0.00013698,2]
[332106742,1720966243569,-1242.67,0.00013698,2]
[332106744,1720966243579,-500.0,0.00013698,2]
[332106746,1720966243591,-500.0,0.00013698,2]
[332106748,1720966243602,-500.0,0.00013698,2]
[332106750,1720966243612,-500.0,0.00013698,2]
[332106753,1720966243622,-500.0,0.00013698,2]
[332106755,1720966243631,-500.0,0.00013698,2]
[332106758,1720966243640,-500.0,0.00013698,2]
[332106762,1720966243650,-500.0,0.00013698,2]
[332106766,1720966243661,-500.0,0.00013698,2]
[332106771,1720966243671,-500.0,0.00013698,2]
[332106773,1720966243681,-500.0,0.00013698,2]
[332106777,1720966243690,-500.0,0.00013698,2]
[332106781,1720966243700,-484.46392755,0.00013698,2]
[332106784,1720966243710,-500.0,0.00013698,2]
[332106786,1720966243722,-500.0,0.00013698,2]
[332106788,1720966243732,-500.0,0.00013698,2]
[332106790,1720966243742,-500.0,0.00013698,2]
[332106792,1720966243752,-500.0,0.00013698,2]
[332106793,1720966243762,-500.0,0.00013698,2]
[332106795,1720966243772,-500.0,0.00013698,2]
[332106797,1720966243782,-500.0,0.00013698,2]
[332106799,1720966243792,-500.0,0.00013698,2]
[332106801,1720966243802,-500.0,0.00013698,2]
[332106803,1720966243812,-500.0,0.00013698,2]
[332106805,1720966243821,-500.0,0.00013698,2]
[332106807,1720966243831,-500.0,0.00013698,2]
[332106809,1720966243841,-500.0,0.00013698,2]
[332106811,1720966243850,-500.0,0.00013698,2]
[332106813,1720966243859,-500.0,0.00013698,2]
[332106815,1720966243869,-500.0,0.00013698,2]
[332106817,1720966243880,-500.0,0.00013698,2]
[332106819,1720966243889,-500.0,0.00013698,2]
[332106821,1720966243899,-500.0,0.00013698,2]
[332106823,1720966243910,-500.0,0.00013698,2]
[332106825,1720966243922,-500.0,0.00013698,2]
[332106827,1720966243931,-500.0,0.00013698,2]
[332106829,1720966243940,-500.0,0.00013698,2]
[332106831,1720966243951,-500.0,0.00013698,2]
[332106832,1720966243961,-500.0,0.00013698,2]
[332106834,1720966243971,-500.0,0.00013698,2]
[332106837,1720966243982,-500.0,0.00013698,2]
[332106839,1720966243992,-500.0,0.00013698,2]
[332106840,1720966244002,-500.0,0.00013698,2]
[332106843,1720966244012,-500.0,0.00013698,2]
[332106845,1720966244021,-500.0,0.00013698,2]
[332106846,1720966244030,-500.0,0.00013698,2]
[332106848,1720966244040,-500.0,0.00013698,2]
[332106850,1720966244049,-500.0,0.00013698,2]
[332106852,1720966244059,-500.0,0.00013698,2]
[332106854,1720966244069,-500.0,0.00013698,2]
[332106856,1720966244079,-600.23,0.00013698,2]
[332106858,1720966244088,-500.0,0.00013698,2]
[332106860,1720966244097,-500.0,0.00013698,2]
[332106862,1720966244106,-500.0,0.00013698,2]
[332106864,1720966244116,-500.0,0.00013698,2]
[332106866,1720966244126,-500.0,0.00013698,2]
[332106868,1720966244136,-500.0,0.00013698,2]
[332106870,1720966244146,-500.0,0.00013698,2]
[332106872,1720966244155,-500.0,0.00013698,2]
[332106874,1720966244164,-500.0,0.00013698,2]
[332106876,1720966244179,-500.0,0.00013698,2]
[332106878,1720966244188,-500.0,0.00013698,2]
[332106880,1720966244198,-500.0,0.00013698,2]
[332106882,1720966244207,-500.0,0.00013698,2]
[332106884,1720966244216,-500.0,0.00013698,2]
[332106886,1720966244226,-500.0,0.00013698,2]
[332106888,1720966244235,-500.0,0.00013698,2]
[332106889,1720966244243,-500.0,0.00013698,2]
[332106891,1720966244253,-500.0,0.00013698,2]
[332106893,1720966244263,-500.0,0.00013698,2]
[332106895,1720966244272,-500.0,0.00013698,2]
[332106897,1720966244282,-500.0,0.00013698,2]
[332106899,1720966244290,-500.0,0.00013698,2]
[332106901,1720966244299,-500.0,0.00013698,2]
[332106903,1720966244309,-500.0,0.00013698,2]
[332106905,1720966244318,-500.0,0.00013698,2]
[332106907,1720966244327,-500.0,0.00013698,2]
[332106909,1720966244336,-500.0,0.00013698,2]
[332106911,1720966244346,-500.0,0.00013698,2]
[332106913,1720966244355,-500.0,0.00013698,2]
[332106915,1720966244364,-500.0,0.00013698,2]
[332106917,1720966244373,-500.0,0.00013698,2]
[332106919,1720966244382,-500.0,0.00013698,2]
[332106921,1720966244393,-500.0,0.00013698,2]
[332106923,1720966244403,-500.0,0.00013698,2]
[332106926,1720966244414,-500.0,0.00013698,2]
[332106927,1720966244425,-500.0,0.00013698,2]
[332106929,1720966244434,-500.0,0.00013698,2]
[332106931,1720966244444,-500.0,0.00013698,2]
[332106933,1720966244453,-500.0,0.00013698,2]